[Event "Titled Tuesday Blitz August 1 Early 2023"]
[White "Mishra, Manoj"]
[Black "Bocangel Chavez, Marjoire J."]
[WhiteFideId "5006007"]
[BlackFideId "3810500"]
[WhiteElo "2222"]
[BlackElo "1664"]
[Result "1-0"]
[Round "7"]
[TimeControl "180+1"]
[Date "2023.08.01"]
[WhiteClock "0:00:16"]
[BlackClock "0:00:00"]
[Board "209"]

1. e4 {[%clk 0:03:00]}  e6 {[%clk 0:02:59]} 2. b3 {[%clk 0:02:58]}  Nf6 {[%clk 0:02:56]} 3. e5 {[%clk 0:02:54]}  Nd5 {[%clk 0:02:55]} 4. Bb2 {[%clk 0:02:54]}  c5 {[%clk 0:02:54]} 5. g3 {[%clk 0:02:53]}  b6 {[%clk 0:02:53]} 6. Bg2 {[%clk 0:02:53]}  Nc6 {[%clk 0:02:52]} 7. Ne2 {[%clk 0:02:42]}  Bb7 {[%clk 0:02:49]} 8. O-O {[%clk 0:02:40]}  Be7 {[%clk 0:02:48]} 9. c4 {[%clk 0:02:35]}  Ndb4 {[%clk 0:02:22]} 10. d4 {[%clk 0:02:32]}  cxd4 {[%clk 0:02:22]} 11. Nxd4 {[%clk 0:02:31]}  Qc8 {[%clk 0:02:21]} 12. Nb5 {[%clk 0:02:27]}  O-O {[%clk 0:02:20]} 13. a3 {[%clk 0:02:23]}  Na6 {[%clk 0:02:19]} 14. Nd6 {[%clk 0:02:23]}  Bxd6 {[%clk 0:02:15]} 15. exd6 {[%clk 0:02:24]}  Na5 {[%clk 0:02:06]} 16. b4 {[%clk 0:02:16]}  Bxg2 {[%clk 0:01:55]} 17. Kxg2 {[%clk 0:02:04]}  Nxc4 {[%clk 0:01:51]} 18. Bc3 {[%clk 0:02:00]}  Qc6+ {[%clk 0:01:47]} 19. Kg1 {[%clk 0:01:58]}  Nxd6 {[%clk 0:01:39]} 20. a4 {[%clk 0:01:55]}  b5 {[%clk 0:01:27]} 21. Be5 {[%clk 0:01:31]}  Nc4 {[%clk 0:01:23]} 22. Bf4 {[%clk 0:01:28]}  e5 {[%clk 0:01:17]} 23. Bc1 {[%clk 0:01:25]}  Nxb4 {[%clk 0:01:13]} 24. axb5 {[%clk 0:01:24]}  Qxb5 {[%clk 0:01:12]} 25. Nc3 {[%clk 0:01:24]}  Qc6 {[%clk 0:01:01]} 26. Qg4 {[%clk 0:01:21]}  d5 {[%clk 0:00:56]} 27. h4 {[%clk 0:01:13]}  Qg6 {[%clk 0:00:44]} 28. Qd7 {[%clk 0:01:06]}  Rfd8 {[%clk 0:00:34]} 29. Rxa7 {[%clk 0:01:04]}  Rf8 {[%clk 0:00:17]} 30. Nxd5 {[%clk 0:01:00]}  Nxd5 {[%clk 0:00:17]} 31. Rxa8 {[%clk 0:01:00]}  Rxa8 {[%clk 0:00:16]} 32. Qxd5 {[%clk 0:01:00]}  Rc8 {[%clk 0:00:15]} 33. Bg5 {[%clk 0:00:45]}  Qc6 {[%clk 0:00:14]} 34. Qd3 {[%clk 0:00:38]}  h6 {[%clk 0:00:13]} 35. Bc1 {[%clk 0:00:34]}  e4 {[%clk 0:00:13]} 36. Qe2 {[%clk 0:00:33]}  Ne5 {[%clk 0:00:12]} 37. Bb2 {[%clk 0:00:31]}  Nf3+ {[%clk 0:00:11]} 38. Kg2 {[%clk 0:00:31]}  Qc4 {[%clk 0:00:07]} 39. Qe3 {[%clk 0:00:22]}  Qe6 {[%clk 0:00:06]} 40. Ra1 {[%clk 0:00:18]}  Qg4 {[%clk 0:00:04]} 41. Ra7 {[%clk 0:00:18]}  Nxh4+ {[%clk 0:00:00]} 42. Kf1 {[%clk 0:00:16]} 1-0


[Site "https://www.chess.com"]

[Event "Titled Tuesday Blitz August 1 Early 2023"]
[White "Howell, David W L"]
[Black "Vargas, Mauricio"]
[WhiteFideId "410608"]
[BlackFideId "4404572"]
[WhiteElo "3025"]
[BlackElo "1888"]
[Result "1-0"]
[Round "7"]
[TimeControl "180+1"]
[Date "2023.08.01"]
[WhiteClock "0:00:47"]
[BlackClock "0:00:00"]
[Board "210"]

1. b4 {[%clk 0:02:56]}  e5 {[%clk 0:02:58]} 2. Bb2 {[%clk 0:02:56]}  d6 {[%clk 0:02:56]} 3. c4 {[%clk 0:02:50]}  f5 {[%clk 0:02:56]} 4. Nc3 {[%clk 0:02:49]}  Nf6 {[%clk 0:02:56]} 5. g3 {[%clk 0:02:41]}  g5 {[%clk 0:02:56]} 6. Bg2 {[%clk 0:02:39]}  Bg7 {[%clk 0:02:56]} 7. a4 {[%clk 0:02:38]}  O-O {[%clk 0:02:55]} 8. d3 {[%clk 0:02:34]}  c6 {[%clk 0:02:48]} 9. b5 {[%clk 0:02:28]}  Bd7 {[%clk 0:02:37]} 10. Nf3 {[%clk 0:02:13]}  g4 {[%clk 0:02:33]} 11. Nh4 {[%clk 0:02:02]}  Qe8 {[%clk 0:02:18]} 12. Qb3 {[%clk 0:01:52]}  Kh8 {[%clk 0:02:15]} 13. h3 {[%clk 0:01:32]}  f4 {[%clk 0:01:57]} 14. gxf4 {[%clk 0:01:20]}  exf4 {[%clk 0:01:52]} 15. hxg4 {[%clk 0:01:15]}  Bxg4 {[%clk 0:01:40]} 16. Ne4 {[%clk 0:01:14]}  d5 {[%clk 0:01:29]} 17. cxd5 {[%clk 0:01:13]}  cxd5 {[%clk 0:01:26]} 18. Nc3 {[%clk 0:01:14]}  Nbd7 {[%clk 0:00:20]} 19. Bf3 {[%clk 0:01:07]}  Ne5 {[%clk 0:00:18]} 20. Kf1 {[%clk 0:00:57]}  Nxf3 {[%clk 0:00:17]} 21. Nxf3 {[%clk 0:00:55]}  Qe5 {[%clk 0:00:12]} 22. Nxe5 {[%clk 0:00:54]}  Rae8 {[%clk 0:00:11]} 23. Ng6+ {[%clk 0:00:52]}  Kg8 {[%clk 0:00:08]} 24. Nxf8 {[%clk 0:00:53]}  Kxf8 {[%clk 0:00:07]} 25. f3 {[%clk 0:00:51]}  Bf5 {[%clk 0:00:05]} 26. Nxd5 {[%clk 0:00:50]}  Be6 {[%clk 0:00:04]} 27. Qb4+ {[%clk 0:00:46]}  Kf7 {[%clk 0:00:02]} 28. Nxf6 {[%clk 0:00:47]}  Bxf6 {[%clk 0:00:00]} 29. Qxf4 {[%clk 0:00:47]} 1-0


[Site "https://www.chess.com"]

[Event "Titled Tuesday Blitz August 1 Early 2023"]
[White "zano2023"]
[Black "Filgueira, Hernan"]
[BlackFideId "101770"]
[WhiteElo "2130"]
[BlackElo "2574"]
[Result "0-1"]
[Round "7"]
[TimeControl "180+1"]
[Date "2023.08.01"]
[WhiteClock "0:00:40"]
[BlackClock "0:00:33"]
[Board "211"]

1. d4 {[%clk 0:03:00]}  Nf6 {[%clk 0:02:59]} 2. Nd2 {[%clk 0:03:00]}  g6 {[%clk 0:02:58]} 3. e4 {[%clk 0:02:59]}  d6 {[%clk 0:02:59]} 4. Ngf3 {[%clk 0:03:00]}  Bg7 {[%clk 0:02:59]} 5. Bd3 {[%clk 0:03:00]}  O-O {[%clk 0:02:59]} 6. O-O {[%clk 0:03:01]}  Nc6 {[%clk 0:02:59]} 7. c3 {[%clk 0:03:01]}  Re8 {[%clk 0:02:59]} 8. Re1 {[%clk 0:03:01]}  e5 {[%clk 0:02:59]} 9. Nf1 {[%clk 0:03:01]}  Bg4 {[%clk 0:02:54]} 10. d5 {[%clk 0:03:00]}  Ne7 {[%clk 0:02:54]} 11. Ng3 {[%clk 0:03:00]}  h6 {[%clk 0:02:53]} 12. h3 {[%clk 0:03:01]}  Bd7 {[%clk 0:02:53]} 13. Be3 {[%clk 0:02:59]}  a5 {[%clk 0:02:52]} 14. Qd2 {[%clk 0:02:59]}  Kh7 {[%clk 0:02:51]} 15. Nh2 {[%clk 0:02:50]}  c5 {[%clk 0:02:46]} 16. c4 {[%clk 0:02:49]}  a4 {[%clk 0:02:45]} 17. f4 {[%clk 0:02:47]}  Neg8 {[%clk 0:02:25]} 18. Nf3 {[%clk 0:02:43]}  Qb6 {[%clk 0:02:08]} 19. fxe5 {[%clk 0:02:37]}  dxe5 {[%clk 0:02:07]} 20. Qf2 {[%clk 0:02:38]}  Rac8 {[%clk 0:02:06]} 21. Rab1 {[%clk 0:02:27]}  Qa5 {[%clk 0:01:58]} 22. Bd2 {[%clk 0:02:22]}  Qa7 {[%clk 0:01:55]} 23. Bc3 {[%clk 0:02:22]}  Qb8 {[%clk 0:01:55]} 24. b4 {[%clk 0:02:09]}  axb3 {[%clk 0:01:54]} 25. axb3 {[%clk 0:02:09]}  b6 {[%clk 0:01:54]} 26. b4 {[%clk 0:02:08]}  Bf8 {[%clk 0:01:54]} 27. b5 {[%clk 0:02:06]}  Qd6 {[%clk 0:01:52]} 28. Qb2 {[%clk 0:02:03]}  Bg7 {[%clk 0:01:36]} 29. Bxe5 {[%clk 0:01:59]}  Qe7 {[%clk 0:01:30]} 30. Bc3 {[%clk 0:01:54]}  Red8 {[%clk 0:01:26]} 31. e5 {[%clk 0:01:52]}  Ne8 {[%clk 0:01:26]} 32. Rbd1 {[%clk 0:01:47]}  Kh8 {[%clk 0:01:14]} 33. Qc2 {[%clk 0:01:47]}  Ra8 {[%clk 0:01:09]} 34. Be4 {[%clk 0:01:31]}  Ra3 {[%clk 0:01:07]} 35. Qb2 {[%clk 0:01:30]}  Ra4 {[%clk 0:01:06]} 36. Bd3 {[%clk 0:01:27]}  Bc8 {[%clk 0:01:03]} 37. e6 {[%clk 0:01:24]}  f5 {[%clk 0:01:01]} 38. Bxg7+ {[%clk 0:01:22]}  Qxg7 {[%clk 0:00:59]} 39. Ne5 {[%clk 0:01:20]}  Kh7 {[%clk 0:00:56]} 40. h4 {[%clk 0:01:19]}  Nd6 {[%clk 0:00:49]} 41. h5 {[%clk 0:01:16]}  Rb4 {[%clk 0:00:47]} 42. Qc3 {[%clk 0:01:15]}  Ne7 {[%clk 0:00:44]} 43. hxg6+ {[%clk 0:01:14]}  Nxg6 {[%clk 0:00:44]} 44. Nh5 {[%clk 0:01:05]}  Qh8 {[%clk 0:00:40]} 45. Nxg6 {[%clk 0:01:03]}  Qxc3 {[%clk 0:00:38]} 46. e7 {[%clk 0:00:57]}  Re8 {[%clk 0:00:37]} 47. Re5 {[%clk 0:00:51]}  Kxg6 {[%clk 0:00:34]} 48. Ng3 {[%clk 0:00:40]}  Qxe5 {[%clk 0:00:33]} 0-1


[Site "https://www.chess.com"]

[Event "Titled Tuesday Blitz August 1 Early 2023"]
[White "Kriti Mayur Patel"]
[Black "Amorim, Daniel Madson De Medeiro"]
[WhiteFideId "35061780"]
[BlackFideId "2124912"]
[WhiteElo "2026"]
[BlackElo "2289"]
[Result "0-1"]
[Round "7"]
[TimeControl "180+1"]
[Date "2023.08.01"]
[WhiteClock "0:02:06"]
[BlackClock "0:01:43"]
[Board "213"]

1. e4 {[%clk 0:03:00]}  e6 {[%clk 0:03:00]} 2. d4 {[%clk 0:03:01]}  d5 {[%clk 0:03:01]} 3. Nc3 {[%clk 0:03:00]}  Nf6 {[%clk 0:03:02]} 4. e5 {[%clk 0:03:00]}  Ne4 {[%clk 0:03:00]} 5. f4 {[%clk 0:03:01]}  Qh4+ {[%clk 0:02:59]} 6. g3 {[%clk 0:02:47]}  Nxg3 {[%clk 0:02:58]} 7. Nf3 {[%clk 0:02:48]}  Qh5 {[%clk 0:02:57]} 8. Bg2 {[%clk 0:02:42]}  Nxh1 {[%clk 0:02:55]} 9. Bxh1 {[%clk 0:02:42]}  a6 {[%clk 0:02:55]} 10. Ne2 {[%clk 0:02:42]}  f6 {[%clk 0:02:53]} 11. Ng3 {[%clk 0:02:42]}  Qf7 {[%clk 0:02:53]} 12. b3 {[%clk 0:02:37]}  c5 {[%clk 0:02:51]} 13. c4 {[%clk 0:02:37]}  dxc4 {[%clk 0:02:50]} 14. bxc4 {[%clk 0:02:37]}  Be7 {[%clk 0:02:33]} 15. d5 {[%clk 0:02:37]}  O-O {[%clk 0:02:23]} 16. d6 {[%clk 0:02:36]}  Bd8 {[%clk 0:02:23]} 17. Be3 {[%clk 0:02:35]}  Bb6 {[%clk 0:02:16]} 18. Qb3 {[%clk 0:02:34]}  Ba7 {[%clk 0:02:11]} 19. Nd2 {[%clk 0:02:30]}  fxe5 {[%clk 0:02:03]} 20. fxe5 {[%clk 0:02:30]}  Nd7 {[%clk 0:02:01]} 21. Bxb7 {[%clk 0:02:22]}  Rb8 {[%clk 0:01:57]} 22. Nde4 {[%clk 0:02:14]}  Bxb7 {[%clk 0:01:53]} 23. Ng5 {[%clk 0:02:14]}  Qg6 {[%clk 0:01:48]} 24. Qa4 {[%clk 0:02:06]}  Nxe5 {[%clk 0:01:43]} 0-1


[Site "https://www.chess.com"]

[Event "Titled Tuesday Blitz August 1 Early 2023"]
[White "Arcos Facio, Mateo"]
[Black "Wisniowski, Natalie"]
[WhiteFideId "3001199"]
[BlackFideId "30929261"]
[WhiteElo "2196"]
[BlackElo "2009"]
[Result "1-0"]
[Round "7"]
[TimeControl "180+1"]
[Date "2023.08.01"]
[WhiteClock "0:00:19"]
[BlackClock "0:00:00"]
[Board "214"]

1. e4 {[%clk 0:03:00]}  e6 {[%clk 0:02:54]} 2. Nf3 {[%clk 0:03:00]}  d5 {[%clk 0:02:54]} 3. e5 {[%clk 0:03:00]}  c5 {[%clk 0:02:52]} 4. b4 {[%clk 0:03:01]}  cxb4 {[%clk 0:02:48]} 5. a3 {[%clk 0:03:01]}  Nc6 {[%clk 0:02:47]} 6. axb4 {[%clk 0:03:01]}  Bxb4 {[%clk 0:02:46]} 7. c3 {[%clk 0:03:01]}  Bc5 {[%clk 0:02:43]} 8. d4 {[%clk 0:03:02]}  Bb6 {[%clk 0:02:44]} 9. Bd3 {[%clk 0:03:01]}  Nge7 {[%clk 0:02:44]} 10. O-O {[%clk 0:03:01]}  O-O {[%clk 0:02:44]} 11. Bxh7+ {[%clk 0:03:00]}  Kxh7 {[%clk 0:02:09]} 12. Ng5+ {[%clk 0:03:00]}  Kg8 {[%clk 0:00:40]} 13. Qh5 {[%clk 0:02:53]}  Re8 {[%clk 0:00:38]} 14. Qxf7+ {[%clk 0:01:50]}  Kh8 {[%clk 0:00:38]} 15. c4 {[%clk 0:00:39]}  Nf5 {[%clk 0:00:13]} 16. Qh5+ {[%clk 0:00:19]}  Kg8 {[%clk 0:00:13]} 17. Qh7+ {[%clk 0:00:19]}  Kf8 {[%clk 0:00:00]} 18. Ba3+ {[%clk 0:00:19]} 1-0


[Site "https://www.chess.com"]

[Event "Titled Tuesday Blitz August 1 Early 2023"]
[White "Makarian, Rudik"]
[Black "Carlsen, Magnus"]
[WhiteFideId "44105681"]
[BlackFideId "1503014"]
[WhiteElo "3024"]
[BlackElo "3249"]
[Result "0-1"]
[Round "8"]
[TimeControl "180+1"]
[Date "2023.08.01"]
[WhiteClock "0:00:00"]
[BlackClock "0:00:02"]
[Board "1"]

1. d4 {[%clk 0:03:00]}  d5 {[%clk 0:02:58]} 2. c4 {[%clk 0:03:00]}  e6 {[%clk 0:02:58]} 3. Nf3 {[%clk 0:03:00]}  Nf6 {[%clk 0:02:57]} 4. g3 {[%clk 0:03:00]}  Be7 {[%clk 0:02:54]} 5. Bg2 {[%clk 0:02:59]}  O-O {[%clk 0:02:54]} 6. Nc3 {[%clk 0:02:58]}  c6 {[%clk 0:02:50]} 7. O-O {[%clk 0:02:56]}  b6 {[%clk 0:02:50]} 8. Nd2 {[%clk 0:02:54]}  Ba6 {[%clk 0:02:36]} 9. b3 {[%clk 0:02:44]}  b5 {[%clk 0:02:25]} 10. c5 {[%clk 0:02:37]}  b4 {[%clk 0:02:25]} 11. Na4 {[%clk 0:02:36]}  Nbd7 {[%clk 0:02:25]} 12. Bb2 {[%clk 0:02:30]}  Bb5 {[%clk 0:02:25]} 13. Re1 {[%clk 0:02:29]}  Qc7 {[%clk 0:02:17]} 14. e4 {[%clk 0:02:22]}  dxe4 {[%clk 0:02:17]} 15. Nxe4 {[%clk 0:02:22]}  Nxe4 {[%clk 0:02:18]} 16. Bxe4 {[%clk 0:02:22]}  Nf6 {[%clk 0:02:18]} 17. Bf3 {[%clk 0:02:20]}  Rfd8 {[%clk 0:02:13]} 18. Qc2 {[%clk 0:02:20]}  Rd7 {[%clk 0:02:12]} 19. a3 {[%clk 0:02:17]}  Bxa4 {[%clk 0:01:57]} 20. bxa4 {[%clk 0:02:17]}  bxa3 {[%clk 0:01:58]} 21. Rxa3 {[%clk 0:02:15]}  Nd5 {[%clk 0:01:58]} 22. Rb3 {[%clk 0:02:14]}  Bf6 {[%clk 0:01:57]} 23. Qc4 {[%clk 0:02:10]}  Rad8 {[%clk 0:01:56]} 24. Qa6 {[%clk 0:01:58]}  Ne7 {[%clk 0:01:39]} 25. Bc3 {[%clk 0:01:54]}  Qc8 {[%clk 0:01:25]} 26. Qxc8 {[%clk 0:01:49]}  Rxc8 {[%clk 0:01:26]} 27. Reb1 {[%clk 0:01:39]}  g5 {[%clk 0:01:10]} 28. Rb7 {[%clk 0:01:21]}  Rcd8 {[%clk 0:00:53]} 29. Ba5 {[%clk 0:01:18]}  Rxb7 {[%clk 0:00:51]} 30. Rxb7 {[%clk 0:01:18]}  Ra8 {[%clk 0:00:43]} 31. Bc7 {[%clk 0:01:05]}  Nd5 {[%clk 0:00:39]} 32. Bd6 {[%clk 0:00:54]}  Bxd4 {[%clk 0:00:24]} 33. Bh5 {[%clk 0:00:54]}  Nf6 {[%clk 0:00:24]} 34. Bxf7+ {[%clk 0:00:53]}  Kh8 {[%clk 0:00:24]} 35. Bxe6 {[%clk 0:00:52]}  Ne4 {[%clk 0:00:24]} 36. Kg2 {[%clk 0:00:37]}  Nxc5 {[%clk 0:00:20]} 37. Bxc5 {[%clk 0:00:36]}  Bxc5 {[%clk 0:00:21]} 38. Bf5 {[%clk 0:00:36]}  Rf8 {[%clk 0:00:20]} 39. g4 {[%clk 0:00:35]}  h5 {[%clk 0:00:12]} 40. Rh7+ {[%clk 0:00:27]}  Kg8 {[%clk 0:00:13]} 41. Rxh5 {[%clk 0:00:28]}  Be7 {[%clk 0:00:13]} 42. Rh6 {[%clk 0:00:23]}  Rf6 {[%clk 0:00:13]} 43. Rh7 {[%clk 0:00:15]}  Rf7 {[%clk 0:00:12]} 44. Rh6 {[%clk 0:00:14]}  Rf6 {[%clk 0:00:12]} 45. Rh3 {[%clk 0:00:08]}  Rd6 {[%clk 0:00:12]} 46. Rc3 {[%clk 0:00:08]}  Kf8 {[%clk 0:00:10]} 47. Kf3 {[%clk 0:00:06]}  Rd4 {[%clk 0:00:09]} 48. Rxc6 {[%clk 0:00:05]}  Rxa4 {[%clk 0:00:09]} 49. Rc7 {[%clk 0:00:03]}  a5 {[%clk 0:00:09]} 50. Ra7 {[%clk 0:00:03]}  Rf4+ {[%clk 0:00:09]} 51. Kg2 {[%clk 0:00:03]}  a4 {[%clk 0:00:09]} 52. f3 {[%clk 0:00:02]}  a3 {[%clk 0:00:10]} 53. Be4 {[%clk 0:00:02]}  Rf6 {[%clk 0:00:09]} 54. Bd5 {[%clk 0:00:02]}  Rd6 {[%clk 0:00:09]} 55. Bc4 {[%clk 0:00:03]}  Rd2+ {[%clk 0:00:10]} 56. Kf1 {[%clk 0:00:01]}  Rxh2 {[%clk 0:00:09]} 57. Ke1 {[%clk 0:00:02]}  Rc2 {[%clk 0:00:09]} 58. Bd5 {[%clk 0:00:02]}  Bb4+ {[%clk 0:00:08]} 59. Kf1 {[%clk 0:00:02]}  Rd2 {[%clk 0:00:09]} 60. Be6 {[%clk 0:00:02]}  Bc5 {[%clk 0:00:10]} 61. Ra5 {[%clk 0:00:03]}  Rc2 {[%clk 0:00:10]} 62. Bb3 {[%clk 0:00:02]}  Rc3 {[%clk 0:00:10]} 63. Bd5 {[%clk 0:00:03]}  Ke7 {[%clk 0:00:09]} 64. Ra6 {[%clk 0:00:04]}  Rd3 {[%clk 0:00:08]} 65. Be4 {[%clk 0:00:01]}  Rd2 {[%clk 0:00:08]} 66. Ke1 {[%clk 0:00:01]}  Bb4 {[%clk 0:00:09]} 67. Ra4 {[%clk 0:00:02]}  Rb2+ {[%clk 0:00:03]} 68. Kd1 {[%clk 0:00:01]}  a2 {[%clk 0:00:02]} 69. Kc1 {[%clk 0:00:02]}  Bc3 {[%clk 0:00:03]} 70. Ra3 {[%clk 0:00:02]}  Rg2 {[%clk 0:00:03]} 71. Ra7+ {[%clk 0:00:02]}  Kd6 {[%clk 0:00:02]} 72. Bb1 {[%clk 0:00:03]}  a1=Q {[%clk 0:00:02]} 73. Ra6+ {[%clk 0:00:03]}  Qxa6 {[%clk 0:00:01]} 74. f4 {[%clk 0:00:00]}  Qa5 {[%clk 0:00:02]} 0-1


[Site "https://www.chess.com"]

[Event "Titled Tuesday Blitz August 1 Early 2023"]
[White "Shimanov, Aleksandr"]
[Black "Kovalenko, Igor"]
[WhiteFideId "4198603"]
[BlackFideId "14117908"]
[WhiteElo "2955"]
[BlackElo "2867"]
[Result "1-0"]
[Round "8"]
[TimeControl "180+1"]
[Date "2023.08.01"]
[WhiteClock "0:00:45"]
[BlackClock "0:00:56"]
[Board "10"]

1. c4 {[%clk 0:02:58]}  e5 {[%clk 0:02:55]} 2. g3 {[%clk 0:02:55]}  Nf6 {[%clk 0:02:50]} 3. Bg2 {[%clk 0:02:55]}  c6 {[%clk 0:02:50]} 4. Nf3 {[%clk 0:02:54]}  e4 {[%clk 0:02:49]} 5. Nd4 {[%clk 0:02:54]}  d5 {[%clk 0:02:49]} 6. cxd5 {[%clk 0:02:52]}  Qxd5 {[%clk 0:02:49]} 7. e3 {[%clk 0:02:52]}  Na6 {[%clk 0:02:46]} 8. d3 {[%clk 0:02:48]}  Qe5 {[%clk 0:02:31]} 9. dxe4 {[%clk 0:02:44]}  Nxe4 {[%clk 0:02:32]} 10. O-O {[%clk 0:02:26]}  Nf6 {[%clk 0:02:25]} 11. Nxc6 {[%clk 0:02:20]}  Qc7 {[%clk 0:02:20]} 12. Nd4 {[%clk 0:02:19]}  Be7 {[%clk 0:02:17]} 13. Nc3 {[%clk 0:02:19]}  O-O {[%clk 0:02:17]} 14. Bd2 {[%clk 0:02:17]}  Nc5 {[%clk 0:02:15]} 15. Qc2 {[%clk 0:02:15]}  Qe5 {[%clk 0:02:14]} 16. Rac1 {[%clk 0:02:08]}  Qh5 {[%clk 0:02:11]} 17. b4 {[%clk 0:02:06]}  Ne6 {[%clk 0:02:06]} 18. Nce2 {[%clk 0:01:42]}  Ng5 {[%clk 0:02:01]} 19. Nf4 {[%clk 0:01:41]}  Qh6 {[%clk 0:02:01]} 20. h4 {[%clk 0:01:36]}  Ng4 {[%clk 0:01:57]} 21. Nf5 {[%clk 0:01:35]}  Qf6 {[%clk 0:01:45]} 22. Nxe7+ {[%clk 0:01:33]}  Qxe7 {[%clk 0:01:46]} 23. hxg5 {[%clk 0:01:33]}  Qxg5 {[%clk 0:01:47]} 24. Qc5 {[%clk 0:01:29]}  Bf5 {[%clk 0:01:33]} 25. e4 {[%clk 0:01:21]}  Qh6 {[%clk 0:01:12]} 26. Nh3 {[%clk 0:01:19]}  Qxd2 {[%clk 0:01:12]} 27. Qxf5 {[%clk 0:01:19]}  Nh6 {[%clk 0:01:11]} 28. Qd5 {[%clk 0:01:17]}  Qxb4 {[%clk 0:01:11]} 29. Rb1 {[%clk 0:01:17]}  Qa4 {[%clk 0:01:10]} 30. Rxb7 {[%clk 0:01:17]}  Rad8 {[%clk 0:01:10]} 31. Qb3 {[%clk 0:01:16]}  Qa5 {[%clk 0:01:11]} 32. Nf4 {[%clk 0:01:16]}  Rd2 {[%clk 0:01:06]} 33. a4 {[%clk 0:01:11]}  a6 {[%clk 0:01:01]} 34. Qb4 {[%clk 0:01:07]}  Qd8 {[%clk 0:01:01]} 35. Nd5 {[%clk 0:01:05]}  Ra2 {[%clk 0:01:01]} 36. Rb1 {[%clk 0:01:01]}  Ng4 {[%clk 0:00:56]} 37. Rb8 {[%clk 0:00:45]} 1-0


[Site "https://www.chess.com"]

[Event "Titled Tuesday Blitz August 1 Early 2023"]
[White "Firouzja, Alireza"]
[Black "Remizov, Yaroslav"]
[WhiteFideId "12573981"]
[BlackFideId "34134015"]
[WhiteElo "3072"]
[BlackElo "2792"]
[Result "1-0"]
[Round "8"]
[TimeControl "180+1"]
[Date "2023.08.01"]
[WhiteClock "0:00:55"]
[BlackClock "0:00:00"]
[Board "12"]

1. e4 {[%clk 0:02:59]}  c5 {[%clk 0:02:58]} 2. Nf3 {[%clk 0:03:00]}  d6 {[%clk 0:02:58]} 3. d4 {[%clk 0:03:00]}  cxd4 {[%clk 0:02:59]} 4. Nxd4 {[%clk 0:03:01]}  Nf6 {[%clk 0:03:00]} 5. Nc3 {[%clk 0:03:01]}  Nc6 {[%clk 0:02:59]} 6. Bg5 {[%clk 0:03:01]}  e6 {[%clk 0:02:58]} 7. Qd2 {[%clk 0:03:02]}  a6 {[%clk 0:02:56]} 8. O-O-O {[%clk 0:03:01]}  Bd7 {[%clk 0:02:54]} 9. Kb1 {[%clk 0:03:02]}  Be7 {[%clk 0:02:52]} 10. h4 {[%clk 0:02:54]}  b5 {[%clk 0:02:47]} 11. Nxc6 {[%clk 0:02:53]}  Bxc6 {[%clk 0:02:47]} 12. f3 {[%clk 0:02:53]}  Qc7 {[%clk 0:02:42]} 13. Ne2 {[%clk 0:02:49]}  Rc8 {[%clk 0:02:39]} 14. Nd4 {[%clk 0:02:49]}  Bb7 {[%clk 0:02:38]} 15. g4 {[%clk 0:02:45]}  h6 {[%clk 0:02:34]} 16. Be3 {[%clk 0:02:42]}  Nd7 {[%clk 0:02:33]} 17. Be2 {[%clk 0:02:28]}  Ne5 {[%clk 0:02:30]} 18. g5 {[%clk 0:02:29]}  h5 {[%clk 0:02:25]} 19. Rhg1 {[%clk 0:02:17]}  g6 {[%clk 0:02:18]} 20. c3 {[%clk 0:02:14]}  Nc4 {[%clk 0:02:15]} 21. Bxc4 {[%clk 0:02:14]}  Qxc4 {[%clk 0:02:14]} 22. Nb3 {[%clk 0:02:14]}  Qc7 {[%clk 0:02:05]} 23. Qf2 {[%clk 0:01:59]}  O-O {[%clk 0:02:00]} 24. Bb6 {[%clk 0:01:59]}  Qb8 {[%clk 0:01:58]} 25. Rge1 {[%clk 0:02:00]}  d5 {[%clk 0:01:43]} 26. exd5 {[%clk 0:01:57]}  Bxd5 {[%clk 0:01:28]} 27. Rxd5 {[%clk 0:01:54]}  exd5 {[%clk 0:01:29]} 28. Rxe7 {[%clk 0:01:54]}  Rfe8 {[%clk 0:01:23]} 29. Rxe8+ {[%clk 0:01:48]}  Rxe8 {[%clk 0:01:24]} 30. a3 {[%clk 0:01:37]}  Qf4 {[%clk 0:01:21]} 31. Bd4 {[%clk 0:01:36]}  Qf5+ {[%clk 0:01:16]} 32. Ka2 {[%clk 0:01:34]}  Qd3 {[%clk 0:01:15]} 33. Qg3 {[%clk 0:01:15]}  Qf5 {[%clk 0:00:45]} 34. Qd6 {[%clk 0:01:11]}  Qxf3 {[%clk 0:00:37]} 35. Nc5 {[%clk 0:01:10]}  Qf1 {[%clk 0:00:32]} 36. Qxd5 {[%clk 0:01:02]}  Kh7 {[%clk 0:00:26]} 37. Nd7 {[%clk 0:00:58]}  Re1 {[%clk 0:00:14]} 38. Nf6+ {[%clk 0:00:58]}  Kg7 {[%clk 0:00:15]} 39. Nxh5+ {[%clk 0:00:58]}  Kh7 {[%clk 0:00:15]} 40. Nf6+ {[%clk 0:00:59]}  Kg7 {[%clk 0:00:15]} 41. Ng4+ {[%clk 0:00:55]}  Kh7 {[%clk 0:00:14]} 42. Ne3 {[%clk 0:00:56]}  Ra1+ {[%clk 0:00:14]} 43. Kb3 {[%clk 0:00:56]}  Qf4 {[%clk 0:00:00]} 44. Qd8 {[%clk 0:00:55]} 1-0


[Site "https://www.chess.com"]

[Event "Titled Tuesday Blitz August 1 Early 2023"]
[White "Basso, Pier Luigi"]
[Black "Nguyen, Ngoc Truong Son"]
[WhiteFideId "866970"]
[BlackFideId "12401110"]
[WhiteElo "2790"]
[BlackElo "2905"]
[Result "0-1"]
[Round "8"]
[TimeControl "180+1"]
[Date "2023.08.01"]
[WhiteClock "0:01:10"]
[BlackClock "0:01:00"]
[Board "13"]

1. e4 {[%clk 0:03:00]}  g6 {[%clk 0:03:00]} 2. d4 {[%clk 0:02:59]}  Bg7 {[%clk 0:03:01]} 3. c4 {[%clk 0:02:59]}  d6 {[%clk 0:03:01]} 4. Nc3 {[%clk 0:02:59]}  Nf6 {[%clk 0:03:01]} 5. f4 {[%clk 0:02:59]}  e5 {[%clk 0:02:58]} 6. fxe5 {[%clk 0:02:51]}  dxe5 {[%clk 0:02:58]} 7. d5 {[%clk 0:02:52]}  c6 {[%clk 0:02:57]} 8. Nf3 {[%clk 0:02:52]}  O-O {[%clk 0:02:55]} 9. Be2 {[%clk 0:02:49]}  b5 {[%clk 0:02:54]} 10. Bg5 {[%clk 0:02:19]}  bxc4 {[%clk 0:02:51]} 11. Bxc4 {[%clk 0:02:13]}  Qb6 {[%clk 0:02:36]} 12. Qe2 {[%clk 0:02:10]}  cxd5 {[%clk 0:02:31]} 13. Nxd5 {[%clk 0:02:11]}  Nxd5 {[%clk 0:02:28]} 14. Bxd5 {[%clk 0:02:12]}  Nc6 {[%clk 0:02:04]} 15. Be3 {[%clk 0:02:09]}  Nd4 {[%clk 0:02:01]} 16. Bxd4 {[%clk 0:02:05]}  exd4 {[%clk 0:02:01]} 17. Bxa8 {[%clk 0:02:06]}  Ba6 {[%clk 0:02:01]} 18. Qd2 {[%clk 0:02:01]}  Rxa8 {[%clk 0:02:00]} 19. O-O-O {[%clk 0:01:56]}  Rb8 {[%clk 0:01:47]} 20. Kb1 {[%clk 0:01:49]}  Bd3+ {[%clk 0:01:11]} 21. Ka1 {[%clk 0:01:50]}  Bh6 {[%clk 0:01:11]} 22. Qf2 {[%clk 0:01:34]}  Be3 {[%clk 0:01:09]} 23. Rxd3 {[%clk 0:01:34]}  Bxf2 {[%clk 0:01:09]} 24. Rb3 {[%clk 0:01:35]}  Qc7 {[%clk 0:01:07]} 25. Rxb8+ {[%clk 0:01:33]}  Qxb8 {[%clk 0:01:08]} 26. Rd1 {[%clk 0:01:34]}  Qf4 {[%clk 0:01:05]} 27. e5 {[%clk 0:01:31]}  Qg4 {[%clk 0:01:03]} 28. a3 {[%clk 0:01:29]}  Qxg2 {[%clk 0:01:02]} 29. Nxd4 {[%clk 0:01:10]}  Qg4 {[%clk 0:01:00]} 0-1


[Site "https://www.chess.com"]